[Event "DSAM Bad Wildungen 2024"]
[Site "Bad Wildungen"]
[Date "2024.08.03"]
[Round "5.14"]
[White "Gaertner, Michael"]
[Black "Heck, Norbert"]
[Result "1-0"]
[Annotator "ChessBase"]
[ECO "A45"]
[WhiteElo "2037"]
[BlackElo "2099"]
[PlyCount "115"]
[EventDate "2024.07.31"]
[EventCountry "GER"]
[SourceTitle "playchess.com"]
[Source "ChessBase"]
[SourceQuality "1"]
[TimeControl "40/5400+30:900+30"]

1. d4 {[%emt 0:00:03]} Nf6 {[%emt 0:00:09]} 2. Nc3 {[%emt 0:00:05]} g6 {[%emt 0:00:19]} 3. Bf4 {[%emt 0:00:36]} Bg7 {[%emt 0:00:14]} 4. e3 {[%emt 0:00:20]} O-O {[%emt 0:00:53]} 5. h4 {[%emt 0:00:12]} d5 {[%emt 0:02:20]} 6. h5 {[%emt 0:00:33]} c5 {[%emt 0:01:08]} 7. hxg6 {[%emt 0:00:31]} fxg6 {[%emt 0:00:21]} 8. Qd2 {[%emt 0:01:22]} Nc6 {[%emt 0:01:44]} 9. O-O-O {[%emt 0:00:17]} Nh5 {[%emt 0:04:29]} 10. Rxh5 {[%emt 0:04:00]} gxh5 {[%emt 0:00:12]} 11. dxc5 {[%emt 0:00:12]} e5 {[%emt 0:01:13]} 12. Bg3 {[%emt 0:00:52]} h4 {[%emt 0:01:19]} 13. Bh2 {[%emt 0:00:05]} d4 {[%emt 0:02:01]} 14. Bc4+ {[%emt 0:00:17]} Kh8 {[%emt 0:00:09]} 15. Ne4 {[%emt 0:00:21]} Bf5 {[%emt 0:03:50]} 16. Nd6 {[%emt 0:00:54]} Bg6 {[%emt 0:00:35]} 17. Nxb7 {[%emt 0:03:32]} Qf6 {[%emt 0:02:17]} 18. Nf3 {[%emt 0:01:24]} h3 {[%emt 0:00:40]} 19. Nd6 {[%emt 0:06:47]} hxg2 {[%emt 0:01:45]} 20. Bd5 {[%emt 0:00:16]} Bh5 {[%emt 0:01:34]} 21. Bxc6 {[%emt 0:01:47]} Bxf3 {[%emt 0:00:12]} 22. Bxa8 {[%emt 0:00:14]} Bxa8 {[%emt 0:01:56]} 23. Bg1 {[%emt 0:00:43]} dxe3 {[%emt 0:02:11]} 24. fxe3 {[%emt 0:00:15]} Bf3 {[%emt 0:10:46]} 25. Re1 {[%emt 0:00:33]} e4 {[%emt 0:03:04]} 26. c3 {[%emt 0:02:37]} Qe5 {[%emt 0:09:39]} 27. Qd4 {[%emt 0:04:54]} Qg3 {[%emt 0:04:52]} 28. Qd2 {[%emt 0:00:11]} Qg5 {[%emt 0:00:56]} 29. b4 {[%emt 0:03:00]} Qe5 {[%emt 0:01:42]} 30. Kc2 {[%emt 0:03:24]} Bg4 {[%emt 0:03:32]} 31. Rc1 {[%emt 0:12:55]} a5 {[%emt 0:05:25]} 32. a3 {[%emt 0:05:55]} Qe6 {[%emt 0:03:39]} 33. c4 {[%emt 0:00:59]} axb4 {[%emt 0:16:11]} 34. axb4 {[%emt 0:03:56]} Qf6 {[%emt 0:04:21]} 35. Kb3 {[%emt 0:01:20]} Qe5 {[%emt 0:03:02]} 36. Qxg2 {[%emt 0:02:12]} Bd1+ {[%emt 0:02:27]} 37. Rxd1 {[%emt 0:01:59]} Qc3+ {[%emt 0:00:14]} 38. Ka4 {[%emt 0:00:13]} Ra8+ {[%emt 0:00:27]} 39. Kb5 {[%emt 0:00:04]} Rb8+ {[%emt 0:00:30]} 40. Kc6 {[%emt 0:00:40]} Qxb4 {[%emt 0:01:19]} 41. Nf7+ {[%emt 0:16:40]} Kg8 {[%emt 0:15:07]} 42. Rd8+ {[%emt 0:05:55]} Rxd8 {[%emt 0:01:46]} 43. Nxd8 {[%emt 0:00:37]} Qxc4 {[%emt 0:00:23]} 44. Qg4 {[%emt 0:04:49]} Qa6+ {[%emt 0:00:08]} 45. Kc7 {[%emt 0:01:44]} Qa5+ {[%emt 0:00:16]} 46. Kb8 {[%emt 0:02:03]} Qxd8+ {[%emt 0:00:13]} 47. Qc8 {[%emt 0:00:04]} Be5+ {[%emt 0:00:30]} 48. Kb7 {[%emt 0:00:14]} Qxc8+ {[%emt 0:00:23]} 49. Kxc8 {[%emt 0:00:04]} Kf7 {[%emt 0:02:48]} 50. Kd7 {[%emt 0:00:07]} Kg6 {[%emt 0:00:32]} 51. c6 {[%emt 0:02:21]} Kf5 {[%emt 0:00:20]} 52. c7 {[%emt 0:00:24]} Bxc7 {[%emt 0:00:07]} 53. Kxc7 {[%emt 0:00:03]} Kg4 {[%emt 0:00:31]} 54. Bh2 {[%emt 0:00:35]} Kf3 {[%emt 0:00:55]} 55. Bf4 {[%emt 0:00:05]} h5 {[%emt 0:00:06]} 56. Kd6 {[%emt 0:00:07]} h4 {[%emt 0:00:06]} 57. Ke5 {[%emt 0:00:06]} h3 {[%emt 0:00:08]} 58. Kd4 {[%emt 0:00:04]} 1-0

[Event "DSAM Bad Wildungen 2024"]
[Site "Bad Wildungen"]
[Date "2024.08.03"]
[Round "5.15"]
[White "Pick, Max"]
[Black "Derr, Oleg"]
[Result "0-1"]
[Annotator "ChessBase"]
[ECO "D02"]
[WhiteElo "1906"]
[BlackElo "1947"]
[PlyCount "86"]
[EventDate "2024.07.31"]
[EventCountry "GER"]
[SourceTitle "playchess.com"]
[Source "ChessBase"]
[SourceQuality "1"]
[TimeControl "40/5400+30:900+30"]

1. d4 {[%emt 0:00:09]} Nf6 {[%emt 0:00:04]} 2. Nf3 {[%emt 0:00:12]} e6 {[%emt 0:00:05]} 3. Bf4 {[%emt 0:00:38]} d5 {[%emt 0:00:57]} 4. e3 {[%emt 0:01:16]} Bd6 {[%emt 0:00:05]} 5. Ne5 {[%emt 0:03:55]} O-O {[%emt 0:01:03]} 6. Bd3 {[%emt 0:00:52]} c5 {[%emt 0:00:05]} 7. c3 {[%emt 0:06:46]} Qc7 {[%emt 0:00:17]} 8. Nd2 {[%emt 0:08:37]} Nc6 {[%emt 0:01:01]} 9. Ndf3 {[%emt 0:01:23]} cxd4 {[%emt 0:00:07]} 10. exd4 {[%emt 0:00:16]} Ng4 {[%emt 0:01:13]} 11. Bxh7+ {[%emt 0:04:15]} Kxh7 {[%emt 0:05:06]} 12. Ng5+ {[%emt 0:00:09]} Kg8 {[%emt 0:01:16]} 13. Qxg4 {[%emt 0:01:28]} f6 {[%emt 0:07:08]} 14. Nxc6 {[%emt 0:03:55]} Bxf4 {[%emt 0:04:16]} 15. Nxe6 {[%emt 0:00:49]} Re8 {[%emt 0:03:48]} 16. Ncd8 {[%emt 0:03:55]} Qe7 {[%emt 0:01:59]} 17. O-O {[%emt 0:13:37]} Rxd8 {[%emt 0:00:11]} 18. Rae1 {[%emt 0:00:41]} Re8 {[%emt 0:05:13]} 19. Qxf4 {[%emt 0:02:20]} Bxe6 {[%emt 0:00:06]} 20. Re3 {[%emt 0:00:19]} Qf7 {[%emt 0:00:22]} 21. Rfe1 {[%emt 0:00:35]} Bd7 {[%emt 0:00:50]} 22. Qd6 {[%emt 0:10:49]} Bc6 {[%emt 0:03:34]} 23. h3 {[%emt 0:03:43]} Rad8 {[%emt 0:02:44]} 24. Qc5 {[%emt 0:00:56]} a6 {[%emt 0:01:01]} 25. Re7 {[%emt 0:08:49]} Rxe7 {[%emt 0:00:30]} 26. Qxe7 {[%emt 0:00:56]} Re8 {[%emt 0:00:29]} 27. Qxf7+ {[%emt 0:01:42]} Kxf7 {[%emt 0:00:08]} 28. Rxe8 {[%emt 0:00:18]} Bxe8 {[%emt 0:00:05]} 29. f4 {[%emt 0:00:08]} Ke6 {[%emt 0:00:27]} 30. Kf2 {[%emt 0:00:34]} Bb5 {[%emt 0:00:35]} 31. g4 {[%emt 0:01:33]} Bc4 {[%emt 0:00:23]} 32. b3 {[%emt 0:02:40]} Bd3 {[%emt 0:00:05]} 33. h4 {[%emt 0:07:33]} Bb1 {[%emt 0:00:15]} 34. a3 {[%emt 0:01:10]} Bc2 {[%emt 0:00:05]} 35. f5+ {[%emt 0:00:49]} Kd6 {[%emt 0:00:26]} 36. Ke3 {[%emt 0:06:58]} Bxb3 {[%emt 0:00:18]} 37. Kd2 {[%emt 0:00:37]} Ba4 {[%emt 0:02:00]} 38. Kc1 {[%emt 0:00:45]} Be8 {[%emt 0:01:30]} 39. Kd2 {[%emt 0:01:12]} Kc6 {[%emt 0:00:14]} 40. Ke3 {[%emt 0:02:32]} Kb5 {[%emt 0:00:23]} 41. g5 {[%emt 0:06:32]} Kc4 {[%emt 0:02:50]} 42. g6 {[%emt 0:00:50]} Kxc3 {[%emt 0:00:05]} 43. h5 {[%emt 0:00:04]} b5 {[%emt 0:00:07]} 0-1

[Event "DSAM Bad Wildungen 2024"]
[Site "Bad Wildungen"]
[Date "2024.08.03"]
[Round "5.16"]
[White "Lu, Yunong Elias"]
[Black "Dubinker, Philipp"]
[Result "1-0"]
[Annotator "ChessBase"]
[ECO "B11"]
[WhiteElo "1996"]
[BlackElo "1921"]
[PlyCount "41"]
[EventDate "2024.07.31"]
[EventCountry "GER"]
[SourceTitle "playchess.com"]
[Source "ChessBase"]
[SourceQuality "1"]
[TimeControl "40/5400+30:900+30"]

1. e4 {[%emt 0:00:04]} c6 {[%emt 0:00:04]} 2. Nc3 {[%emt 0:00:21]} d5 {[%emt 0:00:08]} 3. Qf3 {[%emt 0:00:32]} d4 {[%emt 0:00:41]} 4. Bc4 {[%emt 0:01:16]} e6 {[%emt 0:01:34]} 5. Nce2 {[%emt 0:00:41]} c5 {[%emt 0:01:16]} 6. d3 {[%emt 0:16:04]} Nc6 {[%emt 0:01:55]} 7. Qg3 {[%emt 0:03:26]} Nge7 {[%emt 0:05:44]} 8. f4 {[%emt 0:05:42]} Ng6 {[%emt 0:01:27]} 9. Nf3 {[%emt 0:00:58]} Be7 {[%emt 0:02:44]} 10. h4 {[%emt 0:04:01]} h5 {[%emt 0:03:57]} 11. Ng5 {[%emt 0:02:52]} Bxg5 {[%emt 0:06:19]} 12. hxg5 {[%emt 0:00:30]} b5 {[%emt 0:03:21]} 13. Bb3 {[%emt 0:00:28]} Qb6 {[%emt 0:07:25]} 14. c3 {[%emt 0:05:14]} dxc3 {[%emt 0:10:17]} 15. bxc3 {[%emt 0:00:26]} a5 {[%emt 0:05:56]} 16. Be3 {[%emt 0:03:07]} a4 {[%emt 0:09:13]} 17. Bc2 {[%emt 0:03:37]} b4 {[%emt 0:01:28]} 18. Rb1 {[%emt 0:03:33]} Qa5 {[%emt 0:00:49]} 19. Qf2 {[%emt 0:01:33]} Rb8 {[%emt 0:03:42]} 20. Bxc5 {[%emt 0:08:08]} b3 {[%emt 0:01:00]} 21. axb3 {[%emt 0:16:04]} 1-0

[Event "DSAM Bad Wildungen 2024"]
[Site "Bad Wildungen"]
[Date "2024.08.03"]
[Round "5.17"]
[White "Willand, Oliver"]
[Black "Muendoerfer, Sebastian"]
[Result "1/2-1/2"]
[Annotator "ChessBase"]
[ECO "B25"]
[WhiteElo "1868"]
[BlackElo "1988"]
[PlyCount "69"]
[EventDate "2024.07.31"]
[EventCountry "GER"]
[SourceTitle "playchess.com"]
[Source "ChessBase"]
[SourceQuality "1"]
[TimeControl "40/5400+30:900+30"]

1. e4 {[%emt 0:00:04]} c5 {[%emt 0:00:13]} 2. Nc3 {[%emt 0:00:47]} g6 {[%emt 0:00:42]} 3. g3 {[%emt 0:01:28]} Bg7 {[%emt 0:00:44]} 4. Bg2 {[%emt 0:01:33]} Nc6 {[%emt 0:00:28]} 5. d3 {[%emt 0:01:34]} d6 {[%emt 0:02:20]} 6. f4 {[%emt 0:02:34]} Be6 {[%emt 0:09:00]} 7. Nf3 {[%emt 0:02:15]} Nh6 {[%emt 0:03:23]} 8. O-O {[%emt 0:03:25]} O-O {[%emt 0:01:24]} 9. h3 {[%emt 0:01:19]} f5 {[%emt 0:04:57]} 10. Be3 {[%emt 0:10:31]} Bd7 {[%emt 0:02:14]} 11. Qd2 {[%emt 0:03:03]} b5 {[%emt 0:11:41]} 12. e5 {[%emt 0:06:12]} b4 {[%emt 0:04:45]} 13. Ne2 {[%emt 0:01:42]} Rc8 {[%emt 0:01:40]} 14. d4 {[%emt 0:13:50]} cxd4 {[%emt 0:05:42]} 15. Nfxd4 {[%emt 0:01:36]} Nxd4 {[%emt 0:06:48]} 16. Nxd4 {[%emt 0:01:25]} dxe5 {[%emt 0:00:40]} 17. fxe5 {[%emt 0:00:21]} f4 {[%emt 0:04:40]} 18. Bxf4 {[%emt 0:01:30]} Nf5 {[%emt 0:00:42]} 19. Qxb4 {[%emt 0:03:21]} Rb8 {[%emt 0:12:11]} 20. Qc4+ {[%emt 0:03:55]} Kh8 {[%emt 0:00:06]} 21. Rad1 {[%emt 0:06:28]} Qb6 {[%emt 0:02:16]} 22. Kh2 {[%emt 0:01:45]} Qxb2 {[%emt 0:01:13]} 23. Qd5 {[%emt 0:05:13]} Bb5 {[%emt 0:05:12]} 24. Bc1 {[%emt 0:06:06]} Qc3 {[%emt 0:02:42]} 25. Rf3 {[%emt 0:01:12]} Qc4 {[%emt 0:00:42]} 26. Nxb5 {[%emt 0:02:04]} Qxb5 {[%emt 0:00:17]} 27. Rb3 {[%emt 0:02:03]} Qe2 {[%emt 0:00:56]} 28. Bf4 {[%emt 0:06:14]} Rxb3 {[%emt 0:04:11]} 29. cxb3 {[%emt 0:00:50]} Ne3 {[%emt 0:04:36]} 30. Bxe3 {[%emt 0:00:57]} Qxe3 {[%emt 0:00:01]} 31. Qd4 {[%emt 0:01:06]} Qe2 {[%emt 0:00:44]} 32. Rd2 {[%emt 0:00:34]} Qe1 {[%emt 0:02:44]} 33. Rd1 {[%emt 0:01:34]} Qe2 {[%emt 0:00:25]} 34. Rd2 {[%emt 0:01:21]} Qe1 {[%emt 0:00:07]} 35. Rd1 {[%emt 0:02:30]} 1/2-1/2

[Event "DSAM Bad Wildungen 2024"]
[Site "Bad Wildungen"]
[Date "2024.08.03"]
[Round "5.18"]
[White "Marcziter, Alex"]
[Black "Cramer, Philipp"]
[Result "0-1"]
[Annotator "ChessBase"]
[ECO "B22"]
[WhiteElo "2052"]
[BlackElo "1905"]
[PlyCount "76"]
[EventDate "2024.07.31"]
[EventCountry "GER"]
[SourceTitle "playchess.com"]
[Source "ChessBase"]
[SourceQuality "1"]
[TimeControl "40/5400+30:900+30"]

1. e4 {[%emt 0:00:02]} c5 {[%emt 0:00:06]} 2. Nf3 {[%emt 0:00:04]} e6 {[%emt 0:00:07]} 3. c3 {[%emt 0:00:04]} Nf6 {[%emt 0:01:38]} 4. e5 {[%emt 0:00:04]} Nd5 {[%emt 0:00:13]} 5. g3 {[%emt 0:00:06]} Nc6 {[%emt 0:01:37]} 6. Bg2 {[%emt 0:00:05]} d6 {[%emt 0:01:28]} 7. exd6 {[%emt 0:00:05]} Bxd6 {[%emt 0:00:27]} 8. O-O {[%emt 0:00:05]} O-O {[%emt 0:00:43]} 9. d4 {[%emt 0:00:03]} cxd4 {[%emt 0:02:11]} 10. Nxd4 {[%emt 0:01:02]} Bc5 {[%emt 0:13:35]} 11. Nxc6 {[%emt 0:12:27]} bxc6 {[%emt 0:00:04]} 12. c4 {[%emt 0:00:42]} Nb4 {[%emt 0:03:39]} 13. Qa4 {[%emt 0:06:27]} Qb6 {[%emt 0:05:15]} 14. Nd2 {[%emt 0:17:57]} Ba6 {[%emt 0:15:01]} 15. a3 {[%emt 0:17:39]} Nd3 {[%emt 0:00:38]} 16. Ne4 {[%emt 0:00:06]} Bd4 {[%emt 0:05:40]} 17. Qc2 {[%emt 0:02:29]} Rad8 {[%emt 0:05:43]} 18. Kh1 {[%emt 0:10:08]} Nxc1 {[%emt 0:06:28]} 19. Raxc1 {[%emt 0:06:10]} Qxb2 {[%emt 0:00:46]} 20. Qa4 {[%emt 0:09:43]} Qb7 {[%emt 0:02:16]} 21. Rfd1 {[%emt 0:00:15]} Kh8 {[%emt 0:03:18]} 22. Rb1 {[%emt 0:07:07]} Qc8 {[%emt 0:00:16]} 23. c5 {[%emt 0:00:07]} Bb5 {[%emt 0:07:58]} 24. Qxa7 {[%emt 0:02:02]} Rd7 {[%emt 0:00:38]} 25. Qa5 {[%emt 0:00:49]} Qa6 {[%emt 0:03:58]} 26. Qb4 {[%emt 0:05:25]} e5 {[%emt 0:04:38]} 27. Nd6 {[%emt 0:00:31]} Be2 {[%emt 0:01:53]} 28. Rd2 {[%emt 0:00:13]} Bd3 {[%emt 0:02:12]} 29. Rbd1 {[%emt 0:01:23]} Bg6 {[%emt 0:00:23]} 30. Bf1 {[%emt 0:01:04]} Qa7 {[%emt 0:00:19]} 31. Rc1 {[%emt 0:00:50]} Rb8 {[%emt 0:00:29]} 32. Qc4 {[%emt 0:00:36]} Qxa3 {[%emt 0:00:19]} 33. Ra2 {[%emt 0:00:03]} Qf3+ {[%emt 0:01:40]} 34. Bg2 {[%emt 0:00:04]} Qf6 {[%emt 0:01:30]} 35. Bxc6 {[%emt 0:00:38]} Rc7 {[%emt 0:00:33]} 36. Qb5 {[%emt 0:00:54]} Qd8 {[%emt 0:02:51]} 37. Nb7 {[%emt 0:00:58]} Qc8 {[%emt 0:04:45]} 38. Ra7 {[%emt 0:00:04]} Rxc6 {[%emt 0:00:56]} 0-1

[Event "DSAM Bad Wildungen 2024"]
[Site "Bad Wildungen"]
[Date "2024.08.03"]
[Round "5.19"]
[White "Andresen, Marc"]
[Black "Schmidt-Schaeffer, Sebastian"]
[Result "0-1"]
[Annotator "ChessBase"]
[ECO "B94"]
[WhiteElo "1844"]
[BlackElo "2344"]
[PlyCount "56"]
[EventDate "2024.07.31"]
[EventCountry "GER"]
[SourceTitle "playchess.com"]
[Source "ChessBase"]
[SourceQuality "1"]
[TimeControl "40/5400+30:900+30"]

1. e4 {[%emt 0:00:03]} c5 {[%emt 0:00:07]} 2. Nf3 {[%emt 0:00:02]} d6 {[%emt 0:00:07]} 3. d4 {[%emt 0:00:03]} cxd4 {[%emt 0:00:06]} 4. Nxd4 {[%emt 0:00:04]} Nf6 {[%emt 0:00:08]} 5. Nc3 {[%emt 0:00:05]} a6 {[%emt 0:00:18]} 6. Bg5 {[%emt 0:00:04]} Nbd7 {[%emt 0:02:06]} 7. Bc4 {[%emt 0:00:06]} g6 {[%emt 0:03:23]} 8. f3 {[%emt 0:09:58]} Bg7 {[%emt 0:01:01]} 9. Qd2 {[%emt 0:00:17]} h6 {[%emt 0:03:02]} 10. Be3 {[%emt 0:00:58]} Ne5 {[%emt 0:07:19]} 11. Bb3 {[%emt 0:00:05]} Nc6 {[%emt 0:02:17]} 12. O-O-O {[%emt 0:01:01]} Nxd4 {[%emt 0:00:33]} 13. Bxd4 {[%emt 0:00:12]} O-O {[%emt 0:01:23]} 14. Bxf6 {[%emt 0:10:37]} exf6 {[%emt 0:02:11]} 15. Qxd6 {[%emt 0:00:15]} Qa5 {[%emt 0:00:43]} 16. Nd5 {[%emt 0:14:10]} Be6 {[%emt 0:12:49]} 17. Ne7+ {[%emt 0:03:51]} Kh7 {[%emt 0:00:10]} 18. Bxe6 {[%emt 0:00:24]} fxe6 {[%emt 0:07:17]} 19. Qxe6 {[%emt 0:00:49]} Rae8 {[%emt 0:01:42]} 20. Kb1 {[%emt 0:13:02]} Qg5 {[%emt 0:53:48]} 21. Qd7 {[%emt 0:07:16]} f5 {[%emt 0:00:00]} 22. Nd5 {[%emt 0:01:42]} fxe4 {[%emt 0:00:00]} 23. fxe4 {[%emt 0:02:32]} Rxe4 {[%emt 0:00:00]} 24. Qh3 {[%emt 0:17:14]} Re2 {[%emt 0:00:00]} 25. Qd3 {[%emt 0:04:11]} Rff2 {[%emt 0:00:00]} 26. g3 {[%emt 0:04:09]} Rd2 {[%emt 0:00:00]} 27. Rxd2 {[%emt 0:01:33]} Rxd2 {[%emt 0:00:00]} 28. h4 {[%emt 0:02:14]} Qxd5 {[%emt 0:00:00]} 0-1

[Event "DSAM Bad Wildungen 2024"]
[Site "Bad Wildungen"]
[Date "2024.08.03"]
[Round "5.20"]
[White "Petzold, Johannes Julius"]
[Black "Kettner-Nikolaus, Frank"]
[Result "0-1"]
[Annotator "ChessBase"]
[ECO "C06"]
[WhiteElo "1983"]
[BlackElo "1940"]
[PlyCount "60"]
[EventDate "2024.07.31"]
[EventCountry "GER"]
[SourceTitle "playchess.com"]
[Source "ChessBase"]
[SourceQuality "1"]
[TimeControl "40/5400+30:900+30"]

1. e4 {[%emt 0:00:03]} e6 {[%emt 0:00:05]} 2. d4 {[%emt 0:00:05]} d5 {[%emt 0:00:04]} 3. Nd2 {[%emt 0:00:07]} Nf6 {[%emt 0:00:06]} 4. e5 {[%emt 0:00:09]} Nfd7 {[%emt 0:00:06]} 5. Bd3 {[%emt 0:00:05]} c5 {[%emt 0:00:05]} 6. c3 {[%emt 0:00:09]} Nc6 {[%emt 0:00:05]} 7. Ne2 {[%emt 0:00:08]} Qb6 {[%emt 0:00:56]} 8. Nf3 {[%emt 0:01:13]} cxd4 {[%emt 0:01:03]} 9. cxd4 {[%emt 0:00:08]} f6 {[%emt 0:00:06]} 10. exf6 {[%emt 0:01:09]} Nxf6 {[%emt 0:00:05]} 11. O-O {[%emt 0:00:08]} Bd6 {[%emt 0:00:09]} 12. Nc3 {[%emt 0:00:26]} O-O {[%emt 0:00:50]} 13. Be3 {[%emt 0:00:22]} Bd7 {[%emt 0:02:21]} 14. Rc1 {[%emt 0:00:12]} a6 {[%emt 0:12:54]} 15. Qe2 {[%emt 0:14:11]} Qc7 {[%emt 0:01:57]} 16. h3 {[%emt 0:04:29]} Rae8 {[%emt 0:07:08]} 17. Rfd1 {[%emt 0:12:19]} Re7 {[%emt 0:03:21]} 18. Bb1 {[%emt 0:06:07]} Be8 {[%emt 0:00:48]} 19. Bg5 {[%emt 0:15:36]} Bh5 {[%emt 0:10:11]} 20. Qd3 {[%emt 0:07:58]} h6 {[%emt 0:11:29]} 21. Bxf6 {[%emt 0:04:17]} Rxf6 {[%emt 0:04:23]} 22. Qh7+ {[%emt 0:03:07]} Kf7 {[%emt 0:03:23]} 23. Ng5+ {[%emt 0:10:26]} Ke8 {[%emt 0:02:01]} 24. Re1 {[%emt 0:06:46]} Bh2+ {[%emt 0:02:38]} 25. Kh1 {[%emt 0:02:07]} Qf4 {[%emt 0:04:00]} 26. Qg8+ {[%emt 0:05:30]} Rf8 {[%emt 0:01:29]} 27. Nxe6 {[%emt 0:03:19]} Rxg8 {[%emt 0:00:18]} 28. Nxf4 {[%emt 0:00:05]} Bxf4 {[%emt 0:00:08]} 29. Nxd5 {[%emt 0:00:09]} Bxc1 {[%emt 0:00:38]} 30. Nxe7 {[%emt 0:00:06]} Bd2 {[%emt 0:00:26]} 0-1

[Event "DSAM Bad Wildungen 2024"]
[Site "Bad Wildungen"]
[Date "2024.08.03"]
[Round "5.21"]
[White "Rose, Luis Stratos"]
[Black "Steinbrenner, Peter"]
[Result "1/2-1/2"]
[Annotator "ChessBase"]
[ECO "D05"]
[WhiteElo "1868"]
[BlackElo "1951"]
[PlyCount "62"]
[EventDate "2024.07.31"]
[EventCountry "GER"]
[SourceTitle "playchess.com"]
[Source "ChessBase"]
[SourceQuality "1"]
[TimeControl "40/5400+30:900+30"]

1. d4 {[%emt 0:00:03]} Nf6 {[%emt 0:00:05]} 2. Nf3 {[%emt 0:00:10]} d5 {[%emt 0:00:13]} 3. e3 {[%emt 0:00:25]} c5 {[%emt 0:00:23]} 4. b3 {[%emt 0:00:54]} e6 {[%emt 0:01:04]} 5. Bb2 {[%emt 0:01:10]} Bd6 {[%emt 0:00:33]} 6. Bd3 {[%emt 0:00:55]} Nbd7 {[%emt 0:00:52]} 7. O-O {[%emt 0:00:55]} Qc7 {[%emt 0:00:58]} 8. Nbd2 {[%emt 0:01:56]} O-O {[%emt 0:02:08]} 9. h3 {[%emt 0:03:59]} b6 {[%emt 0:02:03]} 10. Rc1 {[%emt 0:02:17]} e5 {[%emt 0:02:31]} 11. dxe5 {[%emt 0:05:59]} Nxe5 {[%emt 0:01:28]} 12. Nxe5 {[%emt 0:00:16]} Bxe5 {[%emt 0:00:09]} 13. Bxe5 {[%emt 0:00:07]} Qxe5 {[%emt 0:00:07]} 14. Nf3 {[%emt 0:10:19]} Qh5 {[%emt 0:04:23]} 15. Nd2 {[%emt 0:02:57]} Qxd1 {[%emt 0:01:13]} 16. Rfxd1 {[%emt 0:00:07]} Bb7 {[%emt 0:00:07]} 17. c3 {[%emt 0:03:22]} Rad8 {[%emt 0:00:54]} 18. Be2 {[%emt 0:03:17]} Rfe8 {[%emt 0:01:52]} 19. Bf3 {[%emt 0:01:40]} h6 {[%emt 0:01:35]} 20. Rc2 {[%emt 0:10:35]} Ba6 {[%emt 0:03:41]} 21. Nf1 {[%emt 0:01:08]} Ne4 {[%emt 0:00:49]} 22. Bxe4 {[%emt 0:01:02]} dxe4 {[%emt 0:00:20]} 23. Rcd2 {[%emt 0:00:12]} Rd3 {[%emt 0:02:25]} 24. c4 {[%emt 0:06:14]} b5 {[%emt 0:05:21]} 25. Rxd3 {[%emt 0:02:48]} exd3 {[%emt 0:00:13]} 26. Nd2 {[%emt 0:01:03]} Kf8 {[%emt 0:04:48]} 27. cxb5 {[%emt 0:02:53]} Bxb5 {[%emt 0:00:06]} 28. Nc4 {[%emt 0:01:05]} Bxc4 {[%emt 0:00:49]} 29. bxc4 {[%emt 0:00:05]} Re4 {[%emt 0:00:32]} 30. Rxd3 {[%emt 0:00:12]} Rxc4 {[%emt 0:00:04]} 31. Ra3 {[%emt 0:00:12]} Rc1+ {[%emt 0:01:37]} 1/2-1/2

[Event "DSAM Bad Wildungen 2024"]
[Site "Bad Wildungen"]
[Date "2024.08.03"]
[Round "5.22"]
[White "Voicu-Jagodzinsky, Carmen"]
[Black "Eichstaedt, Mirko"]
[Result "1-0"]
[Annotator "ChessBase"]
[ECO "B13"]
[WhiteElo "2227"]
[BlackElo "2235"]
[PlyCount "75"]
[EventDate "2024.07.31"]
[EventCountry "GER"]
[SourceTitle "playchess.com"]
[Source "ChessBase"]
[SourceQuality "1"]
[TimeControl "40/5400+30:900+30"]

1. d4 {[%emt 1:31:00]} Nf6 {[%emt 1:31:00]} 2. Nc3 {[%emt 0:00:30]} d5 {[%emt 0:00:30]} 3. Bf4 {[%emt 0:00:30]} c5 {[%emt 0:00:30]} 4. e3 {[%emt 0:00:30]} cxd4 {[%emt 0:00:30]} 5. exd4 {[%emt 0:00:30]} a6 {[%emt 0:00:30]} 6. Nf3 {[%emt 0:00:30]} Nc6 {[%emt 0:00:30]} 7. Ne5 {[%emt 0:00:30]} Bd7 {[%emt 0:00:30]} 8. Be2 {[%emt 0:00:30]} e6 {[%emt 0:00:30]} 9. O-O {[%emt 0:00:30]} Qb6 {[%emt 0:00:30]} 10. Nxc6 {[%emt 0:00:30]} Bxc6 {[%emt 0:00:30]} 11. Rb1 {[%emt 0:00:30]} Bb4 {[%emt 0:00:30]} 12. Be5 {[%emt 0:00:30]} Qa5 {[%emt 0:00:30]} 13. Bd3 {[%emt 0:00:30]} O-O-O {[%emt 0:00:30]} 14. Ne2 {[%emt 0:00:30]} Bb5 {[%emt 0:00:30]} 15. c3 {[%emt 0:00:30]} Bd6 {[%emt 0:00:30]} 16. b4 {[%emt 0:00:30]} Qb6 {[%emt 0:00:30]} 17. a4 {[%emt 0:00:30]} Bxd3 {[%emt 0:00:30]} 18. Qxd3 {[%emt 0:00:30]} Bxe5 {[%emt 0:00:30]} 19. dxe5 {[%emt 0:00:30]} Nd7 {[%emt 0:00:30]} 20. Qg3 {[%emt 0:00:30]} Rhg8 {[%emt 0:00:30]} 21. Nd4 {[%emt 0:00:30]} Qc7 {[%emt 0:00:30]} 22. Rfe1 {[%emt 0:00:30]} b6 {[%emt 0:00:30]} 23. b5 {[%emt 0:00:30]} a5 {[%emt 0:00:30]} 24. Nc6 {[%emt 0:00:30]} Rde8 {[%emt 0:00:30]} 25. c4 {[%emt 0:00:30]} f6 {[%emt 0:00:30]} 26. cxd5 {[%emt 0:00:30]} exd5 {[%emt 0:00:30]} 27. Rbc1 {[%emt 0:00:30]} Nc5 {[%emt 0:00:30]} 28. exf6 {[%emt 0:00:30]} Qxg3 {[%emt 0:00:30]} 29. hxg3 {[%emt 0:00:30]} Kd7 {[%emt 0:00:30]} 30. Ne5+ {[%emt 0:00:30]} Rxe5 {[%emt 0:00:30]} 31. Rxe5 {[%emt 0:00:30]} Kd6 {[%emt 0:00:30]} 32. Rg5 {[%emt 0:00:30]} g6 {[%emt 0:00:30]} 33. Rd1 {[%emt 0:00:30]} Ke6 {[%emt 0:00:30]} 34. Rgxd5 {[%emt 0:00:30]} Kxf6 {[%emt 0:00:30]} 35. Rd6+ {[%emt 0:00:30]} Ke5 {[%emt 0:00:30]} 36. R1d5+ {[%emt 0:00:30]} Ke4 {[%emt 0:00:30]} 37. f3+ {[%emt 0:00:30]} Ke3 {[%emt 0:00:30]} 38. Re5+ {[%emt 0:00:30]} 1-0